Workbook

Sheet 2.aperturaMusei-GEP
A2: APERTURA DI TUTTI I MUSEI DALLE 20 ALLE 24 PER UNA NOTTE COINCIDENTE CON LE GIORNATE EUROPEE DEL PATRIMONIO 2014
A4: NUMERO | B4: Sito | C4: RISPOSTO | D4: EMAIL | E4: REGIONE | F4: N. partecipanti Area III | G4: Costo unitario lordo dipendente Area III comprensivo degli oneri dell'Amm.ne | H4: Totale Costo complessivo lordo dipendenti Area III comprensivo degli oneri dell'Amm.ne | I4: N. partecipanti Area I e II | J4: Costo unitario lordo dipendente Area I e II comprensivo degli oneri dell'Amm.ne | K4: Totale Costo complessivo lordo dipendenti Area I e II comprensivo degli oneri dell'Amm.ne | L4: Area I II e III Costo totale unitario complessivo per singola giornata di apertura | M4: N. aperture | N4: Costo complessivo per turno di 4 ore | O4: ORARIO | P4: NOTE
A5: 1 | B5: Soprintendenza BSAE dell'Abruzzo L'AQUILA | D5: sbsae-abr@beniculturali.it | E5: ABRUZZO | F5: 5 | G5: 132.7 | H5: =F5*G5 -> 663.5 | I5: 19 | J5: 106.16 | K5: =I5*J5 -> 2017.04 | L5: =H5+K5 -> 2680.54 | M5: 1 | N5: =L5*M5 -> 2680.54 | O5: ore 20-24 | P5: Museo di Arte Sacra, Abbazia S.Spirito, Abbazia di S. Clemente, Museo D'Annunzio, Taverna Ducali
A6: 2 | B6: Soprintendenza per i beni archeologici dell'Abruzzo CHIETI | E6: ABRUZZO | G6: 132.7 | H6: 0 | J6: 106.16 | K6: 0 | L6: 0 | M6: 1 | N6: 0 | P6: Non partecipano
A7: 3 | B7: Soprintendenza BSAE della Basilicata MATERA | D7: sbsae-bas@beniculturali.it | E7: BASILICATA | F7: 2 | G7: 132.7 | H7: 265.4 | I7: 11 | J7: 106.16 | K7: 1167.76 | L7: 1433.16 | M7: 1 | N7: 1433.16 | O7: ore 20-24 | P7: Museo d'Arte Medievale e Moderna della Basilicata
A8: 4 | B8: Soprintendenza per i beni archeologici della Basilicata POTENZA | D8: sba-bas@beniculturali.it | E8: BASILICATA | F8: 11 | G8: 132.7 | H8: 1459.7 | I8: 27 | J8: 106.16 | K8: 2866.32 | L8: 4326.02 | M8: 1 | N8: 4326.02 | O8: ore 20-24 | P8: Museo Archeologico Dinu Adamesteanu Potenza,Museo di Grumento,Museo di Muro Lucano,Museo di Melfi,Museo di Venosa,Palazzo di Lieto Maratea,Museo Ridola Matera,Palazzo Ducale di Tricarico,Museo di Metaponto,Museo di Policoro,Convento S'Antonio di Rivello
A9: 5 | B9: Soprintendenza BSAE della Calabria COSENZA | E9: CALABRIA | F9: 4 | G9: 132.7 | H9: 530.8 | I9: 8 | J9: 106.16 | K9: 849.28 | L9: 1380.08 | M9: 1 | N9: 1380.08
A10: 6 | B10: Soprintendenza per i beni archeologici della Calabria R.CALABRIA | D10: sba-cal@beniculturali.it | E10: CALABRIA | F10: 8 | G10: 132.7 | H10: 1061.6 | I10: 43 | J10: 106.16 | K10: 4564.88 | L10: 5626.48 | M10: 1 | N10: 5626.48 | P10: Museo Arch. di RC, Locri, Sibari, Vibo Valentia, Crotone
A11: 7 | B11: Soprintendenza BSAE per le prov. di SALERNO e AVELLINO | D11: sbsae-sa@beniculturali.it | E11: CAMPANIA | F11: 2 | G11: 132.7 | H11: 265.4 | I11: 15 | J11: 106.16 | K11: 1592.4 | L11: 1857.8 | M11: 1 | N11: 1857.8 | O11: ore 20-24 | P11: Museo Diocesano SA, Dogana dei Grani di Atripalda (AV)
A12: 8 | B12: Soprintendenza BAP per le prov. di SALERNO e AVELLINO | D12: sbap-sa@beniculturali.it | E12: CAMPANIA | F12: 10 | G12: 132.7 | H12: 1327 | I12: 46 | J12: 106.16 | K12: 4883.36 | L12: 6210.36 | M12: 1 | N12: 6210.36 | P12: Certosa di S.Lorenzo, Carcere Borbonico di AV, museo virtuale della Scuola medica salernitana, complesso mon. Di S.Pietro a Corte in SA
A13: 9 | B13: Soprintendenza BAPSAE per le prov. di CASERTA e BENEVENTO | E13: CAMPANIA | G13: 132.7 | H13: 0 | J13: 106.16 | K13: 0 | L13: 0 | M13: 1 | N13: 0
A14: 10 | B14: Soprintendenza BAPSAE Napoli e provincia NAPOLI | D14: sbapsae-na@beniculturali.it | E14: CAMPANIA | F14: 1 | G14: 132.7 | H14: 132.7 | I14: 30 | J14: 106.16 | K14: 3184.8 | L14: 3317.5 | M14: 1 | N14: 3317.5 | P14: Palazzo Reale di Napoli
A15: 11 | B15: Soprintendenza per i beni archeologici di NAPOLI | C15: Sì | E15: CAMPANIA | F15: 13 | G15: 132.7 | H15: 1725.1 | I15: 78 | J15: 106.16 | K15: 8280.48 | L15: 10005.58 | M15: 1 | N15: 10005.58 | O15: Museo Archeo 20-24 Museo Nola 20-24 | P15: Museo Naz.le Archeo e Museo Nola
A16: 12 | B16: Soprintendenza per i beni archeologici per le prov. SA, AV, BN e CE SALERNO | C16: Sì | E16: CAMPANIA | F16: 25 | G16: 132.7 | H16: 3317.5 | I16: 231 | J16: 106.16 | K16: 24522.96 | L16: 27840.46 | M16: 1 | N16: 27840.46
A17: 13 | B17: Soprintendenza BAP PARMA e PIACENZA | D17: sbap-pr@beniculturali.it | E17: EMILIA - ROMAGNA | F17: 2 | G17: 132.7 | H17: 265.4 | I17: 6 | J17: 106.16 | K17: 636.96 | L17: 902.36 | M17: 1 | N17: 902.36 | O17: ore 20-24 | P17: Castello di Torrechiara
A18: 14 | B18: Soprintendenza BSAE per le prov. di BO, FE, FC, RA e RN BOLOGNA | D18: sbsae-bo@beniculturali.it | E18: EMILIA - ROMAGNA | F18: 5 | G18: 132.7 | H18: 663.5 | I18: 37 | J18: 106.16 | K18: 3927.92 | L18: 4591.42 | M18: 1 | N18: 4591.42 | O18: ore 20-24 | P18: Pinacoteca di BO, Palazzo Pepoli, Penacoteca Ferrara, Palazzo Milzetti
A19: 15 | B19: Soprintendenza BSAE per le prov. di PARMA e PIACENZA | D19: sbsae-pr@beniculturali.it | E19: EMILIA - ROMAGNA | F19: 3 | G19: 132.7 | H19: 398.1 | I19: 18 | J19: 106.16 | K19: 1910.88 | L19: 2308.98 | M19: 1 | N19: 2308.98 | P19: Galleria Nazionale, Teatro Farnese, Camera di S.Paolo, Antica Spezieria di S. Giovanni
A20: 16 | B20: Soprintendenza BAP per le prov. di RA, FE, FC e RN RAVENNA | C20: si | E20: EMILIA - ROMAGNA | F20: 5 | G20: 132.7 | H20: 663.5 | I20: 34 | J20: 106.16 | K20: 3609.44 | L20: 4272.94 | M20: 1 | N20: 4272.94 | P20: Museo Naz.le Ravenna, Museo Pomposiano e complesso Abaziale di Pomposa, Museo di Casa Romei
A21: 17 | B21: Soprintendenza BSAE per le prov. di MODENA e REGGIO EMILIA | E21: EMILIA - ROMAGNA | G21: 132.7 | H21: 0 | J21: 106.16 | K21: 0 | L21: 0 | M21: 1 | N21: 0 | P21: Solo Giornata Nazionale per il Restauro
A22: 18 | B22: Soprintendenza per i beni archeologici dell'Emilia Romagna BOLOGNA | D22: sba-ero.personale@beniculturali.it | E22: EMILIA - ROMAGNA | F22: 11 | G22: 132.7 | H22: 1459.7 | I22: 31 | J22: 106.16 | K22: 3290.96 | L22: 4750.66 | M22: 1 | N22: 4750.66 | P22: Museo Archeologico Ferrara Museo N.le Etrusco di Marzabotto Museo Archeologico Parma Museoa Arch. N.le di Sarsina
A23: 19 | B23: Soprintendenza BSAE per il Friuli Venezia Giulia TRIESTE | D23: sbsae-fvg@beniculturali.it | E23: FRIULI VENEZIA GIULIA | F23: 1 | G23: 132.7 | H23: 132.7 | I23: 13 | J23: 106.16 | K23: 1380.08 | L23: 1512.78 | M23: 1 | N23: 1512.78 | O23: fino alle 23.30 | P23: Museo Storico del Castello di Miramare
A24: 20 | B24: Soprintendenza per i beni archeologici del Friuli Venezia Giulia TRIESTE | D24: sba-fvg@beniculturali.it | E24: FRIULI VENEZIA GIULIA | F24: 4 | G24: 132.7 | H24: 530.8 | I24: 23 | J24: 106.16 | K24: 2441.68 | L24: 2972.48 | M24: 1 | N24: 2972.48 | P24: MAN Aquileia, MAN Cividale
A25: 21 | B25: Opificio delle Pietre Dure | D25: opd@beniculturali.it | E25: TOSCANA | F25: 1 | G25: 132.7 | H25: =F25*G25 -> 132.7 | I25: 9 | J25: 106.16 | K25: =I25*J25 -> 955.44 | L25: =H25+K25 -> 1088.14 | M25: 1 | N25: =L25*M25 -> 1088.14 | O25: ore 20-24
A26: 22 | B26: Istituto centrale per la demoetnoantropologia ROMA | D26: ic-d@beniculturali.it | E26: LAZIO | F26: 2 | G26: 132.7 | H26: 265.4 | I26: 9 | J26: 106.16 | K26: 955.44 | L26: 1220.84 | M26: 1 | N26: 1220.84 | O26: ore 20-24
A27: 23 | B27: Soprintendenza BAP per il Comune di ROMA | E27: LAZIO | G27: 132.7 | H27: 0 | J27: 106.16 | K27: 0 | L27: 0 | M27: 1 | N27: 0 | P27: Partecipano solo all'apertura San Michele
A28: 24 | B28: Soprintendenza BAP per le prov. di RM, FR, LT, RI, VT ROMA | D28: sbap-laz@beniculturali.it | E28: LAZIO | F28: 5 | G28: 132.7 | H28: 663.5 | I28: 50 | J28: 106.16 | K28: 5308 | L28: 5971.5 | M28: 1 | N28: 5971.5 | P28: Villa d'Este, Pal.Farnese,Pal.Altieri, Villa Lante, Villa Odescalchi
A29: 25 | B29: Soprintendenza alla Galleria nazionale d'arte moderna e contemporanea ROMA | D29: s-gnam@beniculturali.it | E29: LAZIO | F29: 1 | G29: 132.7 | H29: 132.7 | I29: 20 | J29: 106.16 | K29: 2123.2 | L29: 2255.9 | M29: 1 | N29: 2255.9
A30: 26 | B30: Istituto nazionale per la grafica ROMA | D30: in-g@beniculturali.it | E30: LAZIO | F30: 2 | G30: 132.7 | H30: 265.4 | I30: 9 | J30: 106.16 | K30: 955.44 | L30: 1220.84 | M30: 1 | N30: 1220.84 | O30: Palazzo Poli ore 20,00-24,00 | P30: 2 visite guidate alla mostra di P.Nini Santoro e un concerto jazz
A31: 27 | B31: Museo nazionale d'arte orientale ROMA | D31: mn-ao@beniculturali.it | E31: LAZIO | F31: 1 | G31: 132.7 | H31: 132.7 | I31: 3 | J31: 106.16 | K31: 318.48 | L31: 451.18 | M31: 1 | N31: 451.18
A32: 28 | B32: Soprintendenza per i beni archeologici del Lazio ROMA | D32: sba-laz@beniculturali.it | E32: LAZIO | F32: 8 | G32: 132.7 | H32: 1061.6 | I32: 68 | J32: 106.16 | K32: 7218.88 | L32: 8280.48 | M32: 1 | N32: 8280.48 | P32: Cassino, Formia, Minturno, Nemi, Palestrina, Sperlonga, Villa Adriana, Villa di Orazio Licenza
A33: 29 | B33: Soprintendenza speciale per i beni archeologici di ROMA | D33: ssba-rm@beniculturali.it | E33: LAZIO | F33: 2 | G33: 132.7 | H33: 265.4 | I33: 40 | J33: 106.16 | K33: 4246.4 | L33: 4511.8 | M33: 1 | N33: 4511.8 | O33: Colosseo e Museo Nazionale Romano sede delle Terme di Diocleziano | P33: Colosseo e Museo Nazionale Romano sede delle Terme di Diocleziano
A34: 30 | B34: Soprintendenza al Museo nazionale preist. ed etnogr. L. Pigorini ROMA | D34: s-mnpe@beniculturali.it | E34: LAZIO | F34: 2 | G34: 132.7 | H34: 265.4 | I34: 11 | J34: 106.16 | K34: 1167.76 | L34: 1433.16 | M34: 1 | N34: 1433.16
A35: 31 | B35: Soprintendenza per i beni archeologici dell'Etruria meridionale ROMA | D35: sba-em@beniculturali.it | E35: LAZIO | F35: 7 | G35: 132.7 | H35: 928.9 | I35: 134 | J35: 106.16 | K35: 14225.44 | L35: 15154.34 | M35: 1 | N35: 15154.34
A36: 32 | B36: Soprintendenza per i BAP della Liguria GENOVA | D36: sbap-lig@beniculturali.it | E36: LIGURIA | F36: 1 | G36: 132.7 | H36: =F36*G36 -> 132.7 | I36: 22 | J36: 106.16 | K36: =I36*J36 -> 2335.52 | L36: =H36+K36 -> 2468.22 | M36: 1 | N36: =L36*M36 -> 2468.22 | P36: Museo Palazzo Reale
A37: 33 | B37: Soprintendenza BSAE della Liguria GENOVA | D37: sbsae-lig@beniculturali.it | E37: LIGURIA | F37: 1 | G37: 132.7 | H37: 132.7 | I37: 9 | J37: 106.16 | K37: 955.44 | L37: 1088.14 | M37: 1 | N37: 1088.14
A38: 34 | B38: Soprintendenza per i beni archeologici della Liguria GENOVA | D38: sba-lig@beniculturali.it | E38: LIGURIA | F38: 0 | G38: 132.7 | H38: 0 | I38: 11 | J38: 106.16 | K38: 1167.76 | L38: 1167.76 | M38: 1 | N38: 1167.76 | O38: ore 20-24 | P38: Museo Preistorico dei Balzi Rossi e Museo Archeo di Chiavari
A39: 35 | B39: Soprintendenza BAP per le prov. di BS, CR e MN BRESCIA | E39: LOMBARDIA | G39: 132.7 | H39: 0 | J39: 106.16 | K39: 0 | L39: 0 | M39: 1 | N39: 0 | P39: Partecipano solo all'apertura serale de venerdì sera
A40: 36 | B40: Soprintendenza BAP prov. NO, AL, Verb. Cusio Ossola - NOVARA | D40: sbap-no@beniculturali.it | E40: PIEMONTE | F40: 1 | G40: 132.7 | H40: 132.7 | I40: 3 | J40: 106.16 | K40: 318.48 | L40: 451.18 | M40: 1 | N40: 451.18 | P40: Forte Gavi
A41: 37 | B41: Soprintendenza BSAE per le prov. di MN, BS e CR MANTOVA | D41: sbsae-mn@beniculturali.it | E41: LOMBARDIA | F41: 1 | G41: 132.7 | H41: 132.7 | I41: 25 | J41: 106.16 | K41: 2654 | L41: 2786.7 | M41: 1 | N41: 2786.7 | O41: ore 20-24 | P41: Museo di Palazzo Ducale
A42: 38 | B42: Soprintendenza BSAE per le prov. di MI, BG, CO, LC, LO, MZ, PV, SO, VA MILANO | D42: sbsae-mi@beniculturali.it | E42: LOMBARDIA | F42: 3 | G42: 132.7 | H42: 398.1 | I42: 40 | J42: 106.16 | K42: 4246.4 | L42: 4644.5 | M42: 1 | N42: 4644.5
A43: 39 | B43: Soprintendenza per i beni archeologici della Lombardia MILANO | D43: sba-lom@beniculturali.it | E43: LOMBARDIA | F43: 6 | G43: 132.7 | H43: 796.2 | I43: 27 | J43: 106.16 | K43: 2866.32 | L43: 3662.52 | M43: 1 | N43: 3662.52
A44: 40 | B44: Soprintendenza BAP delle Marche ANCONA | D44: sbap-mar@beniculturali.it | E44: MARCHE | F44: 1 | G44: 132.7 | H44: 132.7 | I44: 5 | J44: 106.16 | K44: 530.8 | L44: 663.5 | M44: 1 | N44: 663.5 | O44: ore 20-14 | P44: Rocca roveresca Senigallia
A45: 41 | B45: Soprintendenza BSAE delle Marche URBINO | D45: sbsae-mar@beniculturali.it | E45: MARCHE | F45: 2 | G45: 132.7 | H45: 265.4 | I45: 36 | J45: 106.16 | K45: 3821.76 | L45: 4087.16 | M45: 1 | N45: 4087.16 | P45: Palazzo Ducale di Urbino-Galleria Nazionale delle Marche e Rocca Demaniale di Gradara
A46: 42 | B46: Soprintendenza per i beni archeologici delle Marche ANCONA | D46: sba-mar@beniculturali.it | E46: MARCHE | F46: 4 | G46: 132.7 | H46: 530.8 | I46: 31 | J46: 106.16 | K46: 3290.96 | L46: 3821.76 | M46: 1 | N46: 3821.76 | P46: MA delle MArcheAncona, MA Statale di Ascoli, Antiquarium di Numana, MA di Arcevia, MA di Urbisaglia, MA di Cingoli
A47: 43 | B47: Direzione Regionale per i Beni Culturali e paesaggistici del Molise | D47: dr-mol@beniculturali.it | E47: MOLISE | F47: 9 | G47: 132.7 | H47: =F47*G47 -> 1194.3 | I47: 6 | J47: 106.16 | K47: =I47*J47 -> 636.96 | L47: =H47+K47 -> 1831.26 | M47: 1 | N47: =L47*M47 -> 1831.26 | O47: ore 20-24 | P47: Apertura Palazzo Iapoce
A48: 44 | B48: Soprintendenza BSAE del Molise CAMPOBASSO | D48: sbsae-mol@beniculturali.it | E48: MOLISE | F48: 15 | G48: 132.7 | H48: 1990.5 | I48: 5 | J48: 106.16 | K48: 530.8 | L48: 2521.3 | M48: 1 | N48: 2521.3 | P48: Castello di Gambatesa, Palazzo Pistilli di CB, Castello Pandone di Venafro e Museo Naz.le del Molise
A49: 45 | B49: Soprintendenza BAP del Molise CAMPOBASSO | E49: MOLISE | G49: 132.7 | H49: 0 | J49: 106.16 | K49: 0 | L49: 0 | M49: 1 | N49: 0
A50: 46 | B50: Soprintendenza per i beni archeologici del Molise CAMPOBASSO | D50: sba-mol@beniculturali.it | E50: MOLISE | F50: 18 | G50: 132.7 | H50: 2388.6 | I50: 20 | J50: 106.16 | K50: 2123.2 | L50: 4511.8 | M50: 1 | N50: 4511.8 | O50: ore 20-24 | Q50: X
A51: 47 | B51: Soprintendenza BSAE del Piemonte TORINO | D51: sbsae-pie@beniculturali.it | E51: PIEMONTE | F51: 3 | G51: 132.7 | H51: 398.1 | I51: 17 | J51: 106.16 | K51: 1804.72 | L51: 2202.82 | M51: 1 | N51: 2202.82 | P51: Armeria Reale, Villa della Regina, Palazzo Carignano
A52: 48 | B52: Soprintendenza BAP TO, CN, AT, VC, BI TORINO | D52: sbap-to@beniculturali.it | E52: PIEMONTE | F52: 5 | G52: 132.7 | H52: 663.5 | I52: 36 | J52: 106.16 | K52: 3821.76 | L52: 4485.26 | M52: 1 | N52: 4485.26 | O52: ore 20-24 | P52: Palazzo Reale, Castello di Agliè, Castello di Rocconigi, Palazzo Chiablese
A53: 49 | B53: Soprintendenza per i beni archeologici del Piemonte e del Museo Antichità EgizieTORINO | D53: sba-pie@beniculturali.it | E53: PIEMONTE | F53: 2 | G53: 132.7 | H53: 265.4 | I53: 10 | J53: 106.16 | K53: 1061.6 | L53: 1327 | M53: 1 | N53: 1327 | O53: ore 20-24 | P53: Museo di Antichità
A54: 50 | B54: Soprintendenza BSAE della Puglia BARI | D54: sbsae-pug@beniculturali.it | E54: PUGLIA | F54: 1 | G54: 132.7 | H54: 132.7 | I54: 7 | J54: 106.16 | K54: 743.12 | L54: 875.82 | M54: 1 | N54: 875.82 | O54: ore 20-24 | P54: Galleria Nazionale della Puglia di Palazzo Sylos Calo' a Bitonto
A55: 51 | B55: Soprintendenza BAP per le prov. di BA, Barletta-Andria, Trani e FG BARI | D55: sbap-ba@beniculturali.it | E55: PUGLIA | F55: 3 | G55: 132.7 | H55: 398.1 | I55: 25 | J55: 106.16 | K55: 2654 | L55: 3052.1 | M55: 1 | N55: 3052.1 | O55: ore 20-24 | P55: Castello Svevo di BA, Castello Svevo di Trani, Castel del Monte
A56: 52 | B56: Soprintendenza BAP per le prov. di LE, BR e TA LECCE | D56: sbap-le@beniculturali.it | E56: PUGLIA | F56: 1 | G56: 132.7 | H56: 132.7 | I56: 5 | J56: 106.16 | K56: 530.8 | L56: 663.5 | M56: 1 | N56: 663.5 | P56: Castello di Copertino
A57: 53 | B57: Soprintendenza per i beni archeologici della Puglia TARANTO | D57: sba-pug@beniculturali.it | E57: PUGLIA | F57: 11 | G57: 132.7 | H57: 1459.7 | I57: 57 | J57: 106.16 | K57: 6051.12 | L57: 7510.82 | M57: 1 | N57: 7510.82
A58: 54 | B58: Soprintendenza BAP per le prov. di RC e VV REGGIO CALABRIA | E58: REGGIO CALABRIA | G58: 132.7 | H58: 0 | J58: 106.16 | K58: 0 | L58: 0 | M58: 1 | N58: 0 | P58: Non aderisce
A59: 55 | B59: Soprintendenza BAPSAE per le prov. di CAGLIARI e ORISTANO | E59: SARDEGNA | G59: 132.7 | H59: 0 | J59: 106.16 | K59: 0 | L59: 0 | M59: 1 | N59: 0
A60: 56 | B60: Soprintendenza BAPSAE per le prov. di SASSARI e NUORO | D60: sbapsae-ss@beniculturali.it | E60: SARDEGNA | F60: 27 | G60: 132.7 | H60: 3582.9 | I60: 44 | J60: 106.16 | K60: 4671.04 | L60: 8253.94 | M60: 1 | N60: 8253.94 | P60: Pinacoteca Mus'A al Canopoleno, Sistema museale di Caprera
A61: 57 | B61: Soprintendenza per i beni archeologici per le prov. CAGLIARI e ORISTANO | D61: sba-ca@beniculturali.it | E61: SARDEGNA | F61: 2 | G61: 132.7 | H61: 265.4 | I61: 13 | J61: 106.16 | K61: 1380.08 | L61: 1645.48 | M61: 1 | N61: 1645.48 | P61: Museo Archeologico Nazionale di Cagliari
A62: 58 | B62: Soprintendenza per i beni archeologici per le prov. SASSARI e NUORO | D62: sba-ss@beniculturali.it | E62: SARDEGNA | F62: 6 | G62: 132.7 | H62: 796.2 | I62: 51 | J62: 106.16 | K62: 5414.16 | L62: 6210.36 | M62: 1 | N62: 6210.36 | O62: ore 20-24 | P62: Museo Sanna, Antiquarium, Museo Asproni
A63: 59 | B63: Soprintendenza BSAE per le prov. di SIENA e GROSSETO | D63: sbsae-si@beniculturali.it | E63: TOSCANA | F63: 1 | G63: 132.7 | H63: 132.7 | I63: 11 | J63: 106.16 | K63: 1167.76 | L63: 1300.46 | M63: 1 | N63: 1300.46 | P63: Pinacoteca Nazionale di Siena
A64: 60 | B64: Soprintendenza BAPSAE AREZZO | D64: sbapsae-ar@beniculturali.it | E64: TOSCANA | F64: 3 | G64: 132.7 | H64: 398.1 | I64: 13 | J64: 106.16 | K64: 1380.08 | L64: 1778.18 | M64: 1 | N64: 1778.18 | O64: ore 20-24 | P64: Chiesa di S. Francesco, Museo Nazionale di Arezzo, Museo Statale di Pal.Taglieschi
A65: 61 | B65: Soprintendenza speciale per il patrimonio SAE e per il polo museale della città di Firenze FIRENZE | D65: sspsae-fi@beniculturali.it | E65: TOSCANA | F65: 6 | G65: 132.7 | H65: 796.2 | I65: 95 | J65: 106.16 | K65: 10085.2 | L65: 10881.4 | M65: 1 | N65: 10881.4
A66: 62 | B66: Soprintendenza BAPSAE per le prov. di PISA e LIVORNO | D66: sbapsae-pi@beniculturali.it | E66: TOSCANA | F66: 10 | G66: 132.7 | H66: 1327 | I66: 40 | J66: 106.16 | K66: 4246.4 | L66: 5573.4 | M66: 1 | N66: 5573.4 | P66: Villa S.Martino, Palazzina dei Mulini, Museo Naz.le S. Matteo, Museo Naz. Pal. Reale Pisa, Certosa Monumentale di Calci
A67: 63 | B67: Soprintendenza BAPSAE per le prov. FI (esclusa Firenze) PT e PO FIRENZE | D67: sbapsae-fi@beniculturali.it | E67: TOSCANA | F67: 3 | G67: 132.7 | H67: 398.1 | I67: 12 | J67: 106.16 | K67: 1273.92 | L67: 1672.02 | M67: 1 | N67: 1672.02 | P67: Museo Naz.le Casa Giusti, Pistoia Complesso Monumentale, Firenze Complesso Monumetale "Le Pagliere"
A68: 64 | B68: Soprintendenza BAP per le prov. di SIENA e GROSSETO | D68: sbap-si@beniculturali.it | E68: TOSCANA | F68: 1 | G68: 132.7 | H68: 132.7 | I68: 5 | J68: 106.16 | K68: 530.8 | L68: 663.5 | M68: 1 | N68: 663.5
A69: 65 | B69: Soprintendenza BAPSAE per le prov. LUCCA e MASSA CARRARA | D69: sbapsae-lu@beniculturali.it | E69: TOSCANA | F69: 2 | G69: 132.7 | H69: =F69*G69 -> 265.4 | I69: 13 | J69: 106.16 | K69: =I69*J69 -> 1380.08 | L69: =H69+K69 -> 1645.48 | M69: 1 | N69: =L69*M69 -> 1645.48 | P69: Palazzo Mansi, Villa Guinigi
A70: 66 | B70: Soprintendenza per i beni archeologici della Toscana FIRENZE | D70: sba-tos@beniculturali.it | E70: TOSCANA | F70: 11 | G70: 132.7 | H70: 1459.7 | I70: 56 | J70: 106.16 | K70: 5944.96 | L70: 7404.66 | M70: 1 | N70: 7404.66 | P70: Museo Arch. di Fi, di Arezzo, di Chiusi, Area arch. di Montefortini e di Roselle
A71: 67 | B71: Soprintendenza BSAE dell'Umbria PERUGIA | D71: sbsae-umb@beniculturali.it | E71: UMBRIA | F71: 3 | G71: 132.7 | H71: 398.1 | I71: 14 | J71: 106.16 | K71: 1486.24 | L71: 1884.34 | M71: 1 | N71: 1884.34 | P71: Galleria Naz.le Umbria in PG e castello Bufalini a S.Giustino
A72: 68 | B72: Soprintendenza BAP dell'Umbria PERUGIA | D72: sbap-umb@beniculturali.it | E72: UMBRIA | F72: 3 | G72: 132.7 | H72: 398.1 | I72: 14 | J72: 106.16 | K72: 1486.24 | L72: 1884.34 | M72: 1 | N72: 1884.34 | P72: Museo Nazionale del Ducato di Spoleto, Tempietto sul Clitunno, Pal. Ducale di Gubbio
A73: 69 | B73: Soprintendenza per i beni archeologici dell'Umbria PERUGIA | D73: sba-umb@beniculturali.it | E73: UMBRIA | F73: 6 | G73: 132.7 | H73: 796.2 | I73: 32 | J73: 106.16 | K73: 3397.12 | L73: 4193.32 | M73: 1 | N73: 4193.32
A74: 70 | B74: Soprintendenza BSAE prov. di VR, RO, VI VERONA | E74: VENETO | G74: 132.7 | H74: 0 | J74: 106.16 | K74: 0 | L74: 0 | M74: 1 | N74: 0 | P74: Non dipendono musei
A75: 71 | B75: Soprintendenza BAP per le prov. di VE, BL, PD e TV VENEZIA | D75: sbap-vebpt@beniculturali.it | E75: VENETO | F75: 1 | G75: 132.7 | H75: 132.7 | I75: 5 | J75: 106.16 | K75: 530.8 | L75: 663.5 | M75: 1 | N75: 663.5 | O75: ore 20-24 | P75: Villa Pisani a Stra
A76: 72 | B76: Soprintendenza speciale patrimonio storico,artistico ed etnoantropologico e per il polo museale di VE e dei comuni della Gronda lagunare | D76: sspsae-ve@beniculturali.it | E76: VENETO | F76: 3 | G76: 132.7 | H76: 398.1 | I76: 24 | J76: 106.16 | K76: 2547.84 | L76: 2945.94 | M76: 1 | N76: 2945.94 | P76: Gallerie dell'Accademia, Ca' D'Oro, Museo di Palazzo Grimani
A77: 73 | B77: Soprintendenza per i beni archeologici del Veneto PADOVA | D77: sba-ven@beniculturali.it | E77: VENETO | F77: 5 | G77: 132.7 | H77: 663.5 | I77: 17 | J77: 106.16 | K77: 1804.72 | L77: 2468.22 | M77: 1 | N77: 2468.22
A78: 74 | B78: Soprintendenza speciale per i beni archeologici di Pompei, Ercolano e Stabia | C78: si | E78: CAMPANIA | F78: 6 | G78: 132.7 | H78: 796.2 | I78: 40 | J78: 106.16 | K78: 4246.4 | L78: 5042.6 | M78: 1 | N78: 5042.6 | O78: Museo Archeo 20-24 Museo Nola 20-24 | P78: Pompei, Oplonti, Boscoreale
A79: 75 | B79: Soprintendenza speciale per IL Patrimonio Storico Artistico ed etno per il polo museale della città di Roma | E79: LAZIO | G79: 132.7 | H79: 0 | J79: 106.16 | K79: 0 | L79: 0 | M79: 1 | N79: 0 | P79: sì - In attesa di consocere ile unità Galleria Borghese, Castel Sant'Angelo, Galleria Spada, Museo Nazionale degli Strumenti Musicali
A80: 76 | B80: Istituto Superiore per la Conservazione e il Restauro - ROMA | E80: LAZIO | F80: 0 | G80: 132.7 | H80: =F80*G80 -> 0 | I80: 0 | J80: 106.16 | K80: =I80*J80 -> 0 | L80: =H80+K80 -> 0 | M80: 1 | N80: =L80*M80 -> 0 | P80: Apertura straordinaria del Complesso S.Michele
A81: 77 | B81: Soprintendenza Speciale per il PSAE e per il polo Museale della Città di Napoli e della Reggia di Caserta | D81: sspsae-nap@beniculturali.it | E81: CAMPANIA | F81: 10 | G81: 132.7 | H81: =F81*G81 -> 1327 | I81: 229 | J81: 106.16 | K81: =I81*J81 -> 24310.64 | L81: =H81+K81 -> 25637.64 | M81: 1 | N81: =L81*M81 -> 25637.64 | P81: solo complesso vanvitelliano (1 area III e 64 Area II))
A82: 78 | B82: Soprintendenza BAP di Milano | D82: sbsae-mn@beniculturali.it | E82: LOMBARDIA | F82: 3 | G82: 132.7 | H82: =F82*G82 -> 398.1 | I82: 10 | J82: 106.16 | K82: =I82*J82 -> 1061.6 | L82: =H82+K82 -> 1459.7 | M82: 1 | N82: =L82*M82 -> 1459.7 | O82: ore 20-24 | P82: Cenacolo vinciano e Palazzo Besta in Teglio (SO)
A83: 79 | B83: Biblioteca Reale Torino | D83: b-real@beniculturali.it | E83: PIEMONTE | F83: 1 | G83: 132.7 | H83: =F83*G83 -> 132.7 | I83: 4 | J83: 106.16 | K83: =I83*J83 -> 424.64 | L83: =H83+K83 -> 557.34 | M83: 1 | N83: =L83*M83 -> 557.34 | P83: Apertura straordinaria del Complesso Monumentale
K84: Totale singola apertura | L84: =SUM(L5:L83) -> 275166.72 | M84: Totale complessivo | N84: =SUM(N5:N83) -> 275166.72
A86: N.B : COSTO UNITARIO DEL PERSONALE AL NETTO DEGLI ONERI DELL'AMM.NE: Area 3 € 100
A87: N.B : COSTO UNITARIO DEL PERSONALE AL NETTO DEGLI ONERI DELL'AMM.NE: Area 1 e 2 € 80

Sheet POLI MUSEALI ED ALTRI ISTITUTI
A1: EVENTI DIURNI GIORNATE EUROPEE DEL PATRIMONIO 2017 (23-24 settembre 2017)
A2: Musei e Soprintendenze - Turno di 4 ore
A3: Compenso previsto: euro 100 (a lordo dipendente) Area III; euro 80 (a lordo dipendente) Area I e II
A4: NOME ISTITUTO | B4: TOTALE LORDO DIPENDENTE | C4: TOTALE AL LORDO ONERI AMMINISTRAZIONE
A5: ABRUZZO
A6: SOPRINT. ARCHEOLOGIA BELLE ARTI E PAESAGGIO PER LA CITTA' DELL'AQUILA E I COMUNI DEL CRATERE | B6: =C6/1.327 -> 2260.738508 | C6: 3000
A7: SOPRINT. ARCHEOLOGIA BELLE ARTI E PAESAGG. DELL'ABRUZZO CON L'ESCLUSIONE DELLA CITTA' DELL'AQUILA (AQ) | B7: =C7/1.327 -> 3014.318011 | C7: 4000
A8: POLO MUSEALE DELL'ABRUZZO (CH) | B8: 6782.215524 | C8: 9000
A10: BASILICATA
A11: SOPRINT. ARCHEOLOGIA BELLE ARTI E PAESAG. DELLA BASILICATA (PZ) | B11: 2260.738508 | C11: 3000
A12: POLO MUSEALE DELLA BASILICATA (MT) | B12: 8666.16428 | C12: 11500
A14: CALABRIA
A15: SOPRINTENDENZA ARCHEOLOGIA, BELLE ARTI E PAESAGGIO PER LE PROVINCE DI CATANZARO, COSENZA, CROTONE | B15: 2260.738508 | C15: 3000
A16: SOPRINTENDENZA ARCHEOLOGIA, BELLE ARTI E PAESAGGIO PER LA CITTà METROPOLITANA DI REGGIO CALABRIA E LA PROVINCIA DI VIBO VALENTIA | B16: 2260.738508 | C16: 3000
A17: POLO MUSEALE DELLA CALABRIA (CS) | B17: 9796.533534 | C17: 13000
A18: MUSEO ARCHEOLOGICO NAZ/LE DI REGGIO CALABRIA (RC) | B18: 5275.056518 | C18: 7000
A21: CAMPANIA
A22: SOPRINT. SPECIALE PER POMPEI ,ERCOLANO E STABIA (POMPEI) | B22: 18839.48757 | C22: 25000
A23: SOPRINTENDENZA ARCHEOLOGIA BELLE ARTI E PAESAGGIO PER IL COMUNE DI NAPOLI | B23: 3014.318011 | C23: 4000
A24: SOPRINT. ARCHEOLOGIA BELLE ARTI E PAESAGGIO PER L'AREA METROPOLITANA DI NAPOLI (NA) | B24: 3014.318011 | C24: 4000
A25: SOPRINT. ARCHEOLOGIA BELLE ARTI E PAESAGGIO PER LE PROVINCE DI CASERTA E BENEVENTO (CE) | B25: 4521.477016 | C25: 6000
A26: SOPRINT.ARCHEOLOGIA BELLE ARTI E PAESAGGIO PER LE PROVINCE DI SALERNO E AVELLINO (SA) | B26: 6028.636021 | C26: 8000
A27: POLO MUSEALE DELLA CAMPANIA (NA) | B27: 12057.27204 | C27: 16000
A28: MUSEO CAPODIMONTE (NA) | B28: 10550.11304 | C28: 14000
A29: REGGIA DI CASERTA (CE) | B29: 10550.11304 | C29: 14000
A30: MUSEO ARCHEOLOGICO NAZIONALE DI NAPOLI (NA) | B30: 9042.954032 | C30: 12000
A31: PARCO ARCHEOLOGICO DEI CAMPI FLEGREI | B31: 4521.477016 | C31: 6000
A32: PARCO ARCHEOLOGICO DI ERCOLANO | B32: 3767.897513 | C32: 5000
A33: PARCO ARCHEOLOGICO DI PAESTUM (SA) | B33: 4521.477016 | C33: 6000
A35: EMILIA ROMAGNA
A36: SOPRINT. ARCHEOLOGIA BELLE ARTI E PAESAGGIO PER LA CITTà METROPOLITANA DI BOLOGNA E LE PROVINCE DI MODENA; REGGIO-EMILIA E FERRARA (BO) | B36: 2260.738508 | C36: 3000
A37: SOPRINT. ARCHEOLOGIA BELLE ARTI E PAESAGGIO PER LE PROVINCE DI RAVENNA, FORLI'-CESENA E RIMINI (RA) | B37: 2260.738508 | C37: 3000
A38: SOPRINT. ARCHEOLOGIA BELLE ARTI E PAESAGGIO PER LE PROVINCE DI PARMA E PIACENZA (PR) | B38: 1507.159005 | C38: 2000
A39: POLO MUSEALE DELL'EMILIA E ROMAGNA (BO) | B39: 9796.533534 | C39: 13000
A40: COMPLESSO MONUMENTALE DELLA PILOTTA - PARMA | B40: 6028.636021 | C40: 8000
A41: GALLERIA ESTENSE DI MODENA (MO) | B41: 6028.636021 | C41: 8000
A43: FRIULI VENEZIA GIULIA
A44: SOPRINTENDENZA ARCHEOLOGIA BELLE ARTI E PAESAGGIO DEL FRIULI VENEZIA GIULIA (TS) | B44: 3014.318011 | C44: 4000
A45: MUSEO STORICO E PARCO DEL CASTELLO DI MIRAMARE | B45: 3767.897513 | C45: 5000
A46: POLO MUSEALE DEL FRIULI VENEZIA GIULIA (TS) | B46: =C46/1.327 -> 6782.215524 | C46: 9000
A48: LAZIO
A49: PARCO ARCHEOLOGIOCO DEL COLOSSEO | B49: 15071.59005 | C49: 20000
A50: SOPRINTENDENZA ARCHEOLOGIA BELLE ARTI E PAESAGGIO PER L'AREA METROPOLITANA DI ROMA, LA PROVINCIA DI VITERBO, E L'ETRURIA MERIDIONALE (RM) | B50: 8289.374529 | C50: 11000
A51: SOPRINT. ARCHEOLOGIA BELLE ARTI E PAESAGGIO PER LE PROVINCE DI FROSINONE, LATINA E RIETI | B51: 6782.215524 | C51: 9000
A52: SOPRINT. ARCHEOLOGIA BELLE ARTI E PAESAGGIO PER IL COMUNE DI ROMA | B52: =C52/1.327 -> 6782.215524 | C52: 9000
A53: ISTITUTO CENTRALE PER LA GRAFICA | B53: 3391.107762 | C53: 4500
A54: POLO MUSEALE DEL LAZIO (RM) | B54: 23360.96458 | C54: 31000
A55: IST. SUPER. PER LA CONSERVAZIONE E IL RESTAURO (RM) | B55: 6028.636021 | C55: 8000
A56: MUSEO NAZIONALE ROMANO | B56: 12057.27204 | C56: 16000
A57: MUSEO NAZIONALE ETRUSCO DI VILLA GIULIA | B57: 5275.056518 | C57: 7000
A58: PARCO ARCHEOLOGICO DELL'APPIA ANTICA | B58: 5275.056518 | C58: 7000
A59: PARCO ARCHEOLOGICO DI OSTIA ANTICA | B59: 7535.795026 | C59: 10000
A60: MUSEO DELLE CIVILTA' | B60: 8289.374529 | C60: 11000
A61: VILLA ADRIANA E VILLA D'ESTE | B61: 9796.533534 | C61: 13000
A62: GALLERIA BORGHESE | B62: 5275.056518 | C62: 7000
A63: GALLERIA NAZ.LE ARTE MOD. E CONTEMP. | B63: 5275.056518 | C63: 7000
A64: GALLERIE NAZ.LI ARTE ANTICA | B64: 5275.056518 | C64: 7000
A67: LIGURIA
A68: SOPRINT. ARCHEOLOGIA BELLE ARTI E PAESAGGIO PER LA CITTà METROPOLITANA DI GENOVA E LE PROVINCE DI IMPERIA, LA SPEZIA E SAVONA | B68: 2260.738508 | C68: 3000
A69: POLO MUSEALE DELLA LIGURIA (GE) | B69: 5275.056518 | C69: 7000
A70: PALAZZO REALE DI GENOVA (GE) | B70: 4521.477016 | C70: 6000
A72: LOMBARDIA
A73: SOPRINTENDENZA ARCHEOLOGIA BELLE ARTI E PAESAGGIO PER LA CITTà METROPOLITANA DI MILANO | B73: 2260.738508 | C73: 3000
A74: SOPRINTENDENZA ARCHEOLOGIA BELLE ARTI E PAESAGGIO PER LE PROV. DI COMO,LECCO, MONZA-BRIANZA,PAVIA,SONDRIO E VARESE | B74: 2260.738508 | C74: 3000
A75: SOPRINTENDENZA ARCHEOLOGIA BELLE ARTI E PAESAGGIO PER LE PROV: DI BERGAMO E BRESCIA | B75: 3014.318011 | C75: 4000
A76: SOPRINTENDENZA ARCHEOLOGIA BELLE ARTI E PAESAGGIO PER LE PROV: DI CREMONA, LODI E MANTOVA | C76: 3000
A77: POLO MUSEALE DELLA LOMBARDIA (MI) | B77: 6782.215524 | C77: 9000
A78: PINACOTECA DI BRERA (MI) | B78: 9042.954032 | C78: 12000
A79: PALAZZO DUCALE DI MANTOVA (MN) | B79: 7535.795026 | C79: 10000
A84: MARCHE
A85: SOPRINTENDENZA ARCHEOLOGIA BELLE ARTI E PAESAGGIO DELLE MARCHE (AN) | B85: =C85/1.327 -> 2260.738508 | C85: 3000
A86: POLO MUSEALE DELLE MARCHE (URBINO) | B86: 6028.636021 | C86: 8000
A87: GALLERIA NAZIONALE DELLE MARCHE (URBINO) | B87: 6028.636021 | C87: 8000
A89: MOLISE
A90: SOPRINTENDENZA ARCHEOLOGIA BELLE ARTI E PAESAGGIO DEL MOLISE (CB) | B90: 3014.318011 | C90: 4000
A91: POLO MUSEALE DEL MOLISE (CB) | B91: 5275.056518 | C91: 7000
A93: PIEMONTE
A94: SOPRINTENDENZA ARCHEOLOGIA BELLE ARTI E PAESAGGIO PER LA CITTà METROPOLITANA DI TORINO | B94: 2260.738508 | C94: 3000
A95: SOPRINTENDENZA ARCHEOLOGIA BELLE ARTI E PAESAGGIO PER LE PROV. DI ALESSANDRIA ASTI E CUNEO | B95: 2260.738508 | C95: 3000
A96: SOPRINTENDENZA ARCHEOLOGIA BELLE ARTI E PAESAGGIO PER LE PROV. DI BIELLA, NOVARA, VERBANO-CUSIO-OSSOLA E VERCELLI | C96: 3000
A97: POLO MUSEALE DEL PIEMONTE (TO) | B97: 6782.215524 | C97: 9000
A98: MUSEI REALI DI TORINO (TO) | B98: 9042.954032 | C98: 12000
A102: PUGLIA
A103: SOPRINTENDENZA ARCHEOLOGIA BELLE ARTI E PAESAGGIO PER LA CITTà METROPOLITANA DI BARI | B103: 2260.738508 | C103: 3000
A104: SOPRINTENDENZA ARCHEOLOGIA BELLE ARTI E PAESAGGIO PER LE PROV. DI BARLETTA-ANDRIA-TRANI E FOGGIA | B104: 2260.738508 | C104: 3000
A105: SOPRINTENDENZA ARCHEOLOGIA BELLE ARTI E PAESAGGIO PER LE PROV. DI BRINDISI, LECCE E TARANTO | B105: 2260.738508 | C105: 3000
A106: POLO MUSEALE DELLA PUGLIA (BA) | B106: 11303.69254 | C106: 15000
A107: MUSEO ARCHEOLOGICO NAZIONALE DI TARANTO | B107: 5275.056518 | C107: 7000
A109: SARDEGNA
A110: SOPRINTENDENZA ARCHEOLOGIA BELLE ARTI E PAESAGGIO PER LA CITTà METROPOLITANA DI CAGLIARI E LE PROVINCE DI ORISTANO, MEDIO CAMPIDANO, CARBONIA-IGLESIAS E OGLIASTRA | B110: 2260.738508 | C110: 3000
A111: SOPRINTENDENZA ARCHEOLOGIA BELLE ARTI E PAESAGGIO PER LE PROV. DI SASSARI OLBIA-TEMPIO E NUORO (SS) | B111: 2260.738508 | C111: 3000
A112: POLO MUSEALE DELLA SARDEGNA (CA) | B112: 8289.374529 | C112: 11000
A115: TOSCANA
A116: SOPRINTENDENZA ARCHEOLOGIA BELLE ARTI E PAESAGGIO PER LA CITTA' METROPOLITANA DI FIRENZE E LE PROV. DI PISTOIA E PRATO (FI) | B116: =C116/1.327 -> 2260.738508 | C116: 3000
A117: SOPRINTENDENZA ARCHEOLOGIA BELLE ARTI E PAESAGGIO PER LE PROV. DI SIENA,GROSSETO E AREZZO (SI) | B117: =C117/1.327 -> 2260.738508 | C117: 3000
A118: SOPRINTENDENZA ARCHEOLOGIA BELLE ARTI E PAESAGGIO PER LE PROV. DI PISA E LIVORNO (PI) | B118: =C118/1.327 -> 2260.738508 | C118: 3000
A119: POLO MUSEALE DELLA TOSCANA (FI) | B119: =C119/1.327 -> 16578.74906 | C119: 22000
A120: OPIFICIO DELLE PIETRE DURE DI FIRENZE (FI) | B120: 3014.318011 | C120: 4000
A121: GALLERIA DEGLI UFFIZI (FI) | B121: 11303.69254 | C121: 15000
A122: GALLERIA DELL'ACCADEMIA DI FIRENZE (FI) | B122: 9042.954032 | C122: 12000
A123: MUSEO NAZIONALE DEL BARGELLO (FI) | B123: 6028.636021 | C123: 8000
A126: UMBRIA
A127: SOPRINTENDENZA ARCHEOLOGIA BELLE ARTI E PAESAGGIO DELL'UMBRIA (PG) | B127: 2260.738508 | C127: 3000
A128: POLO MUSEALE DELL'UMBRIA (PG) | B128: 7535.795026 | C128: 10000
A129: GALLERIA NAZIONALE DELL'UMBRIA (PG) | B129: 4521.477016 | C129: 6000
A131: VENETO
A132: SOPRINTENDENZA ARCHEOLOGIA BELLE ARTI PER IL COMUNE DI VENEZIA E LAGUNA | B132: 2260.738508 | C132: 3000
A133: SOPRINTENDENZA ARCHEOLOGIA BELLE ARTI E PAESAGGIO PER L'AREAMETROPOLITANA DI VENEZIA E PER LE PROV. DI BELLUNO, PADOVA E TREVISO | B133: 2260.738508 | C133: 3000
A134: SOPRINTENDENZA ARCHEOLOGIA BELLE ARTI E PAESAGGIO PER LE PROV. DI VERONA, ROVIGO E VICENZA | B134: 2260.738508 | C134: 3000
A135: POLO MUSEALE DEL VENETO (VE) | B135: 12057.27204 | C135: 16000
A136: GALLERIE DELL'ACCADEMIA DI VENEZIA | B136: 6028.636021 | C136: 8000
A138: TOTALE | C138: =SUM(C5:C137) -> 699000
